lending/lending_fUSD_20250122
["ID","MTS","AMOUNT","RATE_DAILY","PERIOD"]
[349955611,1737535844703,-500.0,0.00019446,2]
[349955612,1737535844714,-8872.35,0.00019446,2]
[349955613,1737535844727,-500.0,0.00019446,2]
[349955614,1737535844737,-500.0,0.00019446,2]
[349955615,1737535844747,-548.7,0.00019446,2]
[349955616,1737535844757,-500.0,0.00019446,2]
[349955617,1737535844766,-500.0,0.00019446,2]
[349955618,1737535844776,-500.0,0.00019446,2]
[349955619,1737535844786,-1108.55,0.00019446,2]
[349955620,1737535844795,-500.0,0.00019446,2]
[349955621,1737535844806,-500.0,0.00019446,2]
[349955622,1737535844816,-500.0,0.00019446,2]
[349955623,1737535844825,-500.0,0.00019446,2]
[349955624,1737535844835,-200.0,0.00019446,2]
[349955625,1737535844844,-500.0,0.00019446,2]
[349955626,1737535844854,-500.0,0.00019446,2]
[349955627,1737535844864,-500.0,0.00019446,2]
[349955628,1737535844874,-533.36,0.00019446,2]
[349955629,1737535844884,-500.0,0.00019446,2]
[349955630,1737535844893,-879.16,0.00019446,2]
[349955631,1737535844903,-500.0,0.00019446,2]
[349955632,1737535844914,-666.0,0.00019446,2]
[349955633,1737535844926,-500.0,0.00019446,2]
[349955634,1737535844937,-2887.3,0.00019446,2]
[349955635,1737535844946,-500.0,0.00019446,2]
[349955636,1737535844957,-500.0,0.00019446,2]
[349955637,1737535844967,-500.0,0.00019446,2]
[349955638,1737535844976,-1192.26,0.00019446,2]
[349955639,1737535844985,-500.0,0.00019446,2]
[349955640,1737535844996,-500.0,0.00019446,2]
[349955641,1737535845006,-500.0,0.00019446,2]
[349955642,1737535845016,-500.0,0.00019446,2]
[349955643,1737535845033,-1613.65,0.00019446,2]
[349955644,1737535845052,-840.93,0.00019446,2]
[349955645,1737535845061,-500.0,0.00019446,2]
[349955646,1737535845071,-1815.41,0.00019446,2]
[349955647,1737535845081,-500.0,0.00019446,2]
[349955648,1737535845090,-502.6493661,0.00019446,2]
[349955649,1737535845099,-627.34,0.00019446,2]
[349955650,1737535845109,-552.73,0.00019446,2]
[349955651,1737535845118,-500.0,0.00019446,2]
[349955652,1737535845128,-500.0,0.00019446,2]
[349955653,1737535845138,-1000.0,0.00019446,2]
[349955654,1737535845148,-844.08,0.00019446,2]
[349955655,1737535845159,-500.0,0.00019446,2]
[349955656,1737535845169,-500.0,0.00019446,2]
[349955657,1737535845179,-500.0,0.00019446,2]
[349955658,1737535845191,-2817.94,0.00019446,2]
[349955659,1737535845201,-1195.95,0.00019446,2]
[349955660,1737535845211,-500.0,0.00019446,2]
[349955661,1737535845221,-2298.19,0.00019446,2]
[349955662,1737535845230,-721.13,0.00019446,2]
[349955663,1737535845240,-537.9,0.00019446,2]
[349955664,1737535845249,-1122.6,0.00019446,2]
[349955665,1737535845259,-500.0,0.00019446,2]
[349955666,1737535845269,-1284.0,0.00019446,2]
[349955667,1737535845279,-584.46,0.00019446,2]
[349955668,1737535845288,-500.0,0.00019447,2]
[349955669,1737535845298,-344.361479,0.00019447,2]
[349955670,1737535845307,-183.18905179,0.00019447,2]
[349955671,1737535845317,-500.0,0.00019447,2]
[349955672,1737535845326,-504.66745656,0.00019447,2]
[349955673,1737535845336,-509.94582094,0.00019447,2]
[349955674,1737535845346,-251.09268828,0.00019447,2]
[349955675,1737535845355,-500.0,0.00019447,2]
[349955676,1737535845365,-508.91509294,0.00019447,2]
[349955677,1737535845375,-500.0,0.00019447,2]
[349955678,1737535845384,-793.95,0.00019447,2]
[349955679,1737535845394,-710.25,0.00019447,2]
[349955680,1737535845404,-500.0,0.00019447,2]
[349955681,1737535845414,-500.0,0.00019447,2]
[349955682,1737535845424,-500.0,0.00019447,2]
[349955683,1737535845435,-1448.78,0.00019447,2]
[349955684,1737535845444,-1032.82,0.00019447,2]
[349955685,1737535845453,-1224.48,0.00019447,2]
[349955686,1737535845463,-500.0,0.00019447,2]
[349955687,1737535845473,-565.46,0.00019447,2]
[349955688,1737535845482,-500.0,0.00019447,2]
[349955689,1737535845491,-500.0,0.00019447,2]
[349955690,1737535845501,-500.0,0.00019447,2]
[349955691,1737535845511,-500.0,0.00019447,2]
[349955692,1737535845521,-500.0,0.00019447,2]
[349955693,1737535845530,-500.0,0.00019447,2]
[349955694,1737535845541,-500.0,0.00019447,2]
[349955695,1737535845551,-500.0,0.00019447,2]
[349955696,1737535845560,-500.0,0.00019447,2]
[349955697,1737535845569,-500.0,0.00019447,2]
[349955698,1737535845579,-152.26547187,0.00019473,2]
[349955699,1737535845589,-169.61,0.00019573,2]
[349955700,1737535845599,-500.0,0.00019599,2]
[349955701,1737535845609,-129538.0,0.000196,3]
[349955702,1737535845619,-864.33043042,0.00019629,2]
[349955703,1737535845628,-500.0,0.00019691,2]
[349955704,1737535845638,-500.0,0.00019719,2]
[349955705,1737535845649,-687.92,0.00019719,2]
[349955706,1737535845658,-382.49000001,0.00019719,2]
[349955707,1737535845668,-500.0,0.00019719,2]
[349955708,1737535845677,-829.09,0.00019719,2]
[349955709,1737535845688,-500.0,0.00019719,2]
[349955710,1737535845698,-500.0,0.00019719,2]
[349955711,1737535845707,-706.98,0.00019719,2]
[349955712,1737535845716,-500.0,0.00019719,2]
[349955713,1737535845726,-524.39,0.00019719,2]
[349955714,1737535845736,-500.0,0.00019719,2]
[349955715,1737535845747,-500.0,0.00019719,2]
[349955716,1737535845757,-555.75,0.00019719,2]
[349955717,1737535845766,-882.85,0.00019719,2]
[349955718,1737535845776,-974.81,0.00019719,2]
[349955719,1737535845786,-500.0,0.00019719,2]
[349955720,1737535845796,-500.0,0.00019719,2]
[349955721,1737535845806,-500.0,0.00019719,2]
[349955722,1737535845816,-500.0,0.00019719,2]
[349955723,1737535845826,-500.0,0.00019719,2]
[349955724,1737535845835,-1033.33,0.00019719,2]
[349955725,1737535845845,-881.186028,0.00019719,2]
[349955726,1737535845855,-668.82,0.00019719,2]
[349955727,1737535845866,-584.92,0.00019719,2]
[349955728,1737535845875,-597.75,0.00019719,2]
[349955729,1737535845885,-1383.258647,0.00019719,2]
[349955730,1737535845894,-500.0,0.00019719,2]
[349955731,1737535845904,-500.0,0.00019719,2]
[349955732,1737535845914,-1189.34,0.00019719,2]
[349955733,1737535845928,-500.0,0.00019719,2]
[349955734,1737535845939,-500.0,0.00019719,2]
[349955735,1737535845949,-708.96,0.00019719,2]
[349955736,1737535845959,-500.0,0.00019719,2]
[349955737,1737535845968,-664.95,0.00019719,2]
[349955739,1737535845978,-500.0,0.00019719,2]
[349955740,1737535845987,-1395.76,0.00019719,2]
[349955742,1737535845997,-500.0,0.00019719,2]
[349955744,1737535846008,-274.81590794,0.00019719,2]
[349955746,1737535846018,-567.8,0.00019719,2]
[349955748,1737535846028,-500.0,0.00019719,2]
[349955750,1737535846037,-1026.06,0.00019719,2]
[349955752,1737535846046,-500.0,0.00019719,2]
[349955753,1737535846056,-500.0,0.00019719,2]
[349955755,1737535846065,-553.55,0.00019719,2]
[349955756,1737535846075,-500.0,0.00019719,2]
[349955757,1737535846084,-500.0,0.00019719,2]
[349955758,1737535846093,-1399.0,0.00019719,2]
[349955759,1737535846103,-500.0,0.00019719,2]
[349955760,1737535846112,-897.03,0.00019719,2]
[349955761,1737535846121,-500.0,0.00019719,2]
[349955762,1737535846131,-880.39,0.00019719,2]
[349955763,1737535846141,-500.0,0.00019719,2]
[349955764,1737535846149,-500.0,0.00019719,2]
[349955765,1737535846159,-500.0,0.00019719,2]
[349955766,1737535846168,-500.0,0.00019719,2]
[349955767,1737535846178,-500.0,0.00019719,2]
[349955768,1737535846189,-500.0,0.00019719,2]
[349955769,1737535846198,-1082.05,0.00019719,2]
[349955770,1737535846208,-500.0,0.00019719,2]
[349955771,1737535846217,-1124.96,0.00019719,2]
[349955772,1737535846230,-500.0,0.00019719,2]
[349955773,1737535846240,-500.0,0.00019719,2]
[349955774,1737535846250,-500.0,0.00019719,2]
[349955775,1737535846259,-791.67,0.00019719,2]
[349955776,1737535846269,-659.65,0.00019719,2]
[349955777,1737535846278,-500.0,0.00019719,2]
[349955778,1737535846288,-500.0,0.00019719,2]
[349955779,1737535846297,-500.0,0.00019719,2]
[349955780,1737535846306,-500.0,0.00019719,2]
[349955781,1737535846315,-500.0,0.00019719,2]
[349955782,1737535846325,-897.68,0.00019719,2]
[349955783,1737535846334,-1008.18,0.00019719,2]
[349955784,1737535846344,-1914.1,0.00019719,2]
[349955785,1737535846353,-500.0,0.00019719,2]
[349955786,1737535846363,-500.0,0.00019719,2]
[349955787,1737535846372,-805.46,0.00019719,2]
[349955788,1737535846381,-500.0,0.00019719,2]
[349955789,1737535846391,-2511.45,0.00019719,2]
[349955790,1737535846400,-500.0,0.00019719,2]
[349955791,1737535846409,-500.0,0.00019719,2]
[349955792,1737535846419,-500.0,0.00019719,2]
[349955793,1737535846428,-1206.52,0.00019719,2]
[349955794,1737535846438,-289.42440183,0.00019719,2]
[349955795,1737535846447,-4007.33,0.00019719,2]
[349955796,1737535846457,-2492.62,0.00019719,2]
[349955797,1737535846467,-1678.2,0.00019719,2]
[349955798,1737535846478,-510.06677776,0.00019719,2]
[349955799,1737535846489,-500.0,0.00019719,2]
[349955800,1737535846500,-500.0,0.00019719,2]
[349955801,1737535846510,-1512.08,0.00019719,2]
[349955802,1737535846519,-197.13401883,0.00019719,2]
[349955803,1737535846529,-500.0,0.00019719,2]
[349955804,1737535846538,-425.75,0.00019719,2]
[349955805,1737535846548,-500.0,0.00019719,2]
[349955806,1737535846557,-956.5,0.00019719,2]
[349955808,1737535846567,-500.0,0.00019719,2]
[349955809,1737535846576,-859.9,0.00019719,2]
[349955811,1737535846586,-564.94,0.00019719,2]
[349955812,1737535846595,-500.0,0.00019719,2]
[349955813,1737535846604,-500.0,0.00019719,2]
[349955814,1737535846614,-500.0,0.00019719,2]
[349955815,1737535846623,-500.0,0.00019719,2]
[349955816,1737535846633,-500.0,0.00019719,2]
[349955817,1737535846642,-500.0,0.00019719,2]
[349955818,1737535846652,-790.06,0.00019719,2]
[349955819,1737535846661,-500.0,0.00019719,2]
[349955820,1737535846671,-2269.74,0.00019719,2]
[349955821,1737535846681,-500.0,0.00019719,2]
[349955822,1737535846691,-4879.48,0.00019719,2]
[349955823,1737535846701,-500.0,0.00019719,2]
[349955825,1737535846710,-1144.32,0.00019719,2]
[349955826,1737535846719,-500.0,0.00019719,2]
[349955827,1737535846730,-500.0,0.00019719,2]
[349955829,1737535846741,-500.0,0.00019719,2]
[349955830,1737535846760,-2054.82,0.00019719,2]
[349955831,1737535846770,-500.0,0.00019719,2]
[349955832,1737535846780,-827.92,0.00019719,2]
[349955833,1737535846790,-1961.71,0.00019719,2]
[349955834,1737535846800,-500.0,0.00019719,2]
[349955835,1737535846810,-500.0,0.00019719,2]
[349955837,1737535846819,-1416.44,0.00019719,2]
[349955839,1737535846828,-3220.53,0.00019719,2]
[349955840,1737535846838,-500.0,0.00019719,2]
[349955841,1737535846847,-524.72915458,0.00019719,2]
[349955842,1737535846856,-500.0,0.00019719,2]
[349955843,1737535846866,-500.0,0.00019719,2]
[349955844,1737535846875,-500.0,0.00019719,2]
[349955845,1737535846884,-2309.19,0.00019719,2]
[349955846,1737535846894,-500.0,0.00019719,2]
[349955847,1737535846903,-500.0,0.00019719,2]
[349955848,1737535846914,-1086.97,0.00019719,2]
[349955849,1737535846928,-500.0,0.00019719,2]
[349955850,1737535846939,-836.64,0.00019719,2]
[349955851,1737535846949,-500.0,0.00019719,2]
[349955852,1737535847095,-500.0,0.00019719,2]
[349955853,1737535847126,-1125.48,0.00019719,2]
[349955854,1737535847136,-500.0,0.00019719,2]
[349955855,1737535847146,-1355.86,0.00019719,2]
[349955856,1737535847156,-500.0,0.00019719,2]
[349955857,1737535847166,-500.0,0.00019719,2]
[349955858,1737535847176,-537.78,0.00019719,2]
[349955859,1737535847187,-500.0,0.00019719,2]
[349955860,1737535847197,-644.18,0.00019719,2]
[349955861,1737535847206,-4222.06,0.00019719,2]
[349955862,1737535847216,-500.0,0.00019719,2]
[349955863,1737535847226,-1148.64,0.00019719,2]
[349955864,1737535847236,-500.0,0.00019719,2]
[349955865,1737535847246,-500.0,0.00019719,2]
[349955866,1737535847256,-1996.49,0.00019719,2]
[349955867,1737535847265,-500.0,0.00019719,2]
[349955868,1737535847275,-3033.92,0.00019719,2]
[349955869,1737535847284,-500.0,0.00019719,2]
[349955870,1737535847293,-2532.04,0.00019719,2]
[349955871,1737535847303,-619.37850632,0.00019719,2]
[349955872,1737535847312,-574.92,0.00019719,2]
[349955873,1737535847321,-940.76,0.00019719,2]
[349955874,1737535847331,-500.0,0.00019719,2]
[349955875,1737535847341,-1198.58,0.00019719,2]
[349955876,1737535847351,-1231.92,0.00019719,2]
[349955877,1737535847361,-500.0,0.00019719,2]
[349955878,1737535847371,-500.0,0.00019719,2]
[349955879,1737535847380,-1021.16,0.00019719,2]
[349955880,1737535847390,-500.0,0.00019719,2]
[349955881,1737535847399,-850.43,0.00019719,2]
[349955882,1737535847409,-500.0,0.00019719,2]
[349955883,1737535847419,-626.58,0.00019719,2]
[349955884,1737535847428,-1522.34,0.00019719,2]
[349955885,1737535847442,-1365.0,0.00019719,2]
[349955886,1737535847452,-500.0,0.00019719,2]
[349955887,1737535847462,-500.0,0.00019719,2]
[349955888,1737535847473,-603.87,0.00019719,2]
[349955889,1737535847483,-500.0,0.00019719,2]
[349955890,1737535847493,-1288.07,0.00019719,2]
[349955891,1737535847503,-508.40759636,0.00019719,2]
[349955892,1737535847513,-844.42,0.00019719,2]
[349955893,1737535847522,-500.0,0.00019719,2]
[349955894,1737535847533,-566.83,0.00019719,2]
[349955895,1737535847542,-500.0,0.00019719,2]
[349955896,1737535847551,-537.66,0.00019719,2]
[349955897,1737535847561,-511.79,0.00019719,2]
[349955898,1737535847570,-913.82,0.00019719,2]
[349955899,1737535847580,-500.0,0.00019719,2]
[349955900,1737535847589,-2700.97,0.00019719,2]
[349955901,1737535847599,-500.0,0.00019719,2]
[349955902,1737535847609,-500.0,0.00019719,2]
[349955903,1737535847619,-500.0,0.00019719,2]
[349955904,1737535847628,-500.0,0.00019719,2]
[349955905,1737535847638,-1158.45,0.00019719,2]
[349955906,1737535847647,-500.0,0.00019719,2]
[349955907,1737535847657,-872.83,0.00019719,2]
[349955908,1737535847666,-500.0,0.00019719,2]
[349955909,1737535847682,-2209.36,0.00019719,2]
[349955910,1737535847694,-3528.61,0.00019719,2]
[349955911,1737535847705,-773.09,0.00019719,2]
[349955912,1737535847716,-500.0,0.00019719,2]
[349955913,1737535847726,-500.0,0.00019719,2]
[349955914,1737535847737,-614.04,0.00019719,2]
[349955915,1737535847747,-1417.55,0.00019719,2]
[349955916,1737535847757,-500.0,0.00019719,2]
[349955917,1737535847766,-1067.42,0.00019719,2]
[349955918,1737535847776,-500.0,0.00019719,2]
[349955919,1737535847786,-500.0,0.00019719,2]
[349955920,1737535847795,-500.0,0.00019719,2]
[349955921,1737535847805,-2595.8,0.00019719,2]
[349955922,1737535847814,-633.97,0.00019719,2]
[349955923,1737535847824,-500.0,0.00019719,2]
[349955924,1737535847834,-1154.33,0.00019719,2]
[349955925,1737535847843,-628.26,0.00019719,2]
[349955926,1737535847854,-500.0,0.00019719,2]
[349955927,1737535847865,-500.0,0.00019719,2]
[349955928,1737535847874,-500.0,0.00019719,2]
[349955929,1737535847884,-500.0,0.00019719,2]
[349955930,1737535847894,-500.0,0.00019719,2]
[349955931,1737535847904,-1232.72,0.00019719,2]
[349955932,1737535847913,-500.0,0.00019719,2]
[349955933,1737535847924,-4385.76,0.00019719,2]
[349955934,1737535847937,-851.04,0.00019719,2]
[349955935,1737535847945,-500.0,0.00019719,2]
[349955936,1737535847955,-500.0,0.00019719,2]
[349955937,1737535847964,-1178.01,0.00019719,2]
[349955938,1737535847975,-500.0,0.00019719,2]
[349955939,1737535847985,-500.0,0.00019719,2]
[349955940,1737535847995,-2089.41,0.00019719,2]
[349955941,1737535848006,-844.74,0.00019719,2]
[349955942,1737535848016,-500.0,0.00019719,2]
[349955943,1737535848026,-500.0,0.00019719,2]
[349955944,1737535848035,-577.47,0.00019719,2]
[349955945,1737535848046,-500.0,0.00019719,2]
[349955946,1737535848056,-690.97,0.00019719,2]
[349955947,1737535848066,-195.14255704,0.00019719,2]
[349955948,1737535848076,-500.0,0.00019719,2]
[349955949,1737535848086,-1722.38,0.00019719,2]
[349955950,1737535848095,-1001.69,0.00019719,2]
[349955951,1737535848104,-500.0,0.00019719,2]
[349955952,1737535848114,-799.05,0.00019719,2]
[349955953,1737535848123,-1433.52,0.00019719,2]
[349955954,1737535848133,-680.57,0.00019719,2]
[349955955,1737535848143,-500.0,0.00019719,2]
[349955956,1737535848153,-500.0,0.00019719,2]
[349955957,1737535848162,-866.15,0.00019719,2]
[349955958,1737535848172,-500.0,0.00019719,2]
[349955959,1737535848181,-500.0,0.00019719,2]
[349955960,1737535848193,-500.0,0.00019719,2]
[349955961,1737535848202,-525.26,0.00019719,2]
[349955962,1737535848212,-500.0,0.00019719,2]
[349955963,1737535848222,-658.51,0.00019719,2]
[349955964,1737535848231,-500.0,0.00019719,2]
[349955965,1737535848241,-500.0,0.00019719,2]
[349955966,1737535848250,-1460.47,0.00019719,2]
[349955967,1737535848260,-500.0,0.00019719,2]
[349955968,1737535848269,-1012.24,0.00019719,2]
[349955969,1737535848279,-500.0,0.00019719,2]
[349955970,1737535848288,-703.88,0.00019719,2]
[349955971,1737535848298,-500.0,0.00019719,2]
[349955972,1737535848309,-500.0,0.00019719,2]
[349955973,1737535848318,-500.0,0.00019719,2]
[349955974,1737535848330,-2713.11,0.00019719,2]
[349955975,1737535848340,-500.0,0.00019719,2]
[349955976,1737535848350,-500.0,0.00019719,2]
[349955977,1737535848360,-2398.07,0.00019719,2]
[349955978,1737535848371,-508.44,0.00019719,2]
[349955979,1737535848380,-2259.96,0.00019719,2]
[349955980,1737535848390,-500.0,0.00019719,2]
[349955981,1737535848399,-500.0,0.00019719,2]
[349955982,1737535848409,-1542.11,0.00019719,2]
[349955983,1737535848419,-500.0,0.00019719,2]
[349955984,1737535848428,-1046.31,0.00019719,2]
[349955985,1737535848440,-500.0,0.00019719,2]
[349955986,1737535848451,-500.0,0.00019719,2]
[349955987,1737535848461,-876.07,0.00019719,2]
[349955988,1737535848471,-500.0,0.00019719,2]
[349955989,1737535848481,-2654.27,0.00019719,2]
[349955990,1737535848491,-540.48331934,0.00019719,2]
[349955991,1737535848501,-500.0,0.00019719,2]
[349955992,1737535848511,-588.37,0.00019719,2]
[349955993,1737535848520,-1263.25,0.00019719,2]
[349955994,1737535848530,-399.82366289,0.00019719,2]
[349955995,1737535848540,-588.54,0.00019719,2]
[349955996,1737535848549,-500.0,0.0001972,2]
[349955997,1737535848559,-623.1,0.0001972,2]
[349955998,1737535848568,-500.0,0.0001972,2]
[349955999,1737535848578,-500.0,0.0001972,2]
[349956000,1737535848588,-500.0,0.0001972,2]
[349956001,1737535848598,-500.0,0.0001972,2]
[349956002,1737535848609,-251.68702713,0.0001972,2]
[349956003,1737535848619,-500.0,0.0001972,2]
[349956004,1737535848629,-500.0,0.0001972,2]
[349956005,1737535848639,-500.0,0.0001972,2]
[349956006,1737535848649,-500.0,0.0001972,2]
[349956007,1737535848659,-265.8095371,0.0001972,2]
[349956008,1737535848668,-500.0,0.0001972,2]
[349956009,1737535848678,-500.0,0.0001972,2]
[349956010,1737535848692,-500.0,0.0001972,2]
[349956011,1737535848702,-500.0,0.0001972,2]
[349956012,1737535848713,-500.0,0.0001972,2]
[349956013,1737535848723,-500.0,0.0001972,2]
[349956014,1737535848732,-500.0,0.0001972,2]
[349956015,1737535848743,-500.0,0.0001972,2]
[349956016,1737535848752,-500.0,0.0001972,2]
[349956017,1737535848762,-500.0,0.0001972,2]
[349956018,1737535848772,-500.0,0.0001972,2]
[349956019,1737535848782,-500.0,0.0001972,2]
[349956020,1737535848793,-500.0,0.0001972,2]
[349956021,1737535848803,-500.0,0.0001972,2]
[349956022,1737535848815,-500.0,0.0001972,2]
[349956023,1737535848825,-906.12,0.0001972,2]
[349956024,1737535848836,-500.0,0.0001972,2]
[349956025,1737535848846,-500.0,0.0001972,2]
[349956026,1737535848857,-500.0,0.0001972,2]
[349956027,1737535848867,-557.75,0.0001972,2]
[349956028,1737535848877,-500.0,0.0001972,2]
[349956029,1737535848887,-500.0,0.0001972,2]
[349956030,1737535848897,-500.0,0.0001972,2]
[349956031,1737535848906,-500.0,0.0001972,2]
[349956032,1737535848916,-500.0,0.0001972,2]
[349956033,1737535848927,-500.0,0.0001972,2]
[349956034,1737535848937,-500.0,0.0001972,2]
[349956035,1737535848947,-500.0,0.0001972,2]
[349956036,1737535848956,-500.0,0.0001972,2]
[349956037,1737535848966,-500.0,0.0001972,2]
[349956038,1737535848977,-500.0,0.0001972,2]
[349956039,1737535848988,-523.97,0.0001972,2]
[349956040,1737535848999,-500.0,0.0001972,2]
[349956041,1737535849011,-500.0,0.0001972,2]
[349956042,1737535849021,-500.0,0.0001972,2]
[349956043,1737535849032,-684.22,0.0001972,2]
[349956044,1737535849042,-500.0,0.0001972,2]
[349956045,1737535849052,-500.0,0.0001972,2]
[349956046,1737535849061,-500.76,0.0001972,2]
[349956047,1737535849071,-500.0,0.0001972,2]
[349956048,1737535849080,-500.0,0.0001972,2]
[349956049,1737535849089,-500.0,0.0001972,2]
[349956050,1737535849099,-500.0,0.0001972,2]
[349956051,1737535849109,-500.0,0.0001972,2]
[349956052,1737535849120,-500.0,0.0001972,2]
[349956053,1737535849129,-500.0,0.0001972,2]
[349956054,1737535849139,-500.0,0.0001972,2]
[349956055,1737535849149,-500.0,0.0001972,2]
[349956056,1737535849159,-500.0,0.0001972,2]
[349956057,1737535849169,-500.0,0.0001972,2]
[349956058,1737535849179,-500.0,0.0001972,2]
[349956059,1737535849190,-500.0,0.0001972,2]
[349956060,1737535849201,-500.0,0.0001972,2]
[349956061,1737535849210,-500.0,0.0001972,2]
[349956062,1737535849221,-500.0,0.0001972,2]
[349956063,1737535849231,-500.0,0.0001972,2]
[349956064,1737535849242,-500.0,0.0001972,2]
[349956065,1737535849252,-891.46,0.0001972,2]
[349956066,1737535849262,-500.0,0.0001972,2]
[349956067,1737535849273,-626.77,0.0001972,2]
[349956068,1737535849283,-974.67,0.0001972,2]
[349956069,1737535849293,-500.0,0.0001972,2]
[349956070,1737535849304,-590.26076034,0.0001972,2]
[349956071,1737535849317,-500.0,0.0001972,2]
[349956072,1737535849327,-500.0,0.0001972,2]
[349956073,1737535849339,-667.94,0.0001972,2]
[349956074,1737535849353,-500.0,0.0001972,2]
[349956075,1737535849371,-1171.25,0.0001972,2]
[349956076,1737535849381,-720.08,0.0001972,2]
[349956077,1737535849391,-1121.27,0.0001972,2]
[349956078,1737535849400,-500.0,0.0001972,2]
[349956079,1737535849410,-500.0,0.0001972,2]
[349956080,1737535849419,-761.43,0.0001972,2]
[349956081,1737535849429,-514.73330224,0.0001972,2]
[349956082,1737535849440,-500.0,0.0001972,2]
[349956083,1737535849451,-885.44,0.0001972,2]
[349956084,1737535849460,-500.0,0.0001972,2]
[349956085,1737535849471,-593.11,0.0001972,2]
[349956086,1737535849482,-810.91,0.0001972,2]
[349956087,1737535849491,-500.0,0.0001972,2]
[349956088,1737535849501,-797.59,0.0001972,2]
[349956089,1737535849511,-500.0,0.0001972,2]
[349956090,1737535849520,-500.0,0.0001972,2]
[349956091,1737535849530,-500.0,0.0001972,2]
[349956092,1737535849539,-607.39,0.0001972,2]
[349956093,1737535849549,-500.0,0.0001972,2]
[349956094,1737535849558,-500.0,0.0001972,2]
[349956095,1737535849568,-500.0,0.0001972,2]
[349956096,1737535849577,-500.0,0.0001972,2]
[349956097,1737535849587,-669.28,0.0001972,2]
[349956098,1737535849596,-500.0,0.0001972,2]
[349956099,1737535849606,-500.0,0.0001972,2]
[349956100,1737535849616,-489.9805093,0.0001972,2]
[349956101,1737535849625,-500.0,0.0001972,2]
[349956102,1737535849635,-500.0,0.0001972,2]
[349956103,1737535849645,-500.0,0.0001972,2]
[349956104,1737535849654,-500.0,0.0001972,2]
[349956105,1737535849664,-500.0,0.0001972,2]
[349956106,1737535849675,-500.0,0.0001972,2]
[349956107,1737535849684,-500.0,0.0001972,2]
[349956108,1737535849695,-500.0,0.0001972,2]
[349956109,1737535849705,-500.0,0.0001972,2]
[349956110,1737535849714,-417.79616379,0.0001972,2]
[349956111,1737535849724,-500.0,0.0001972,2]
[349956112,1737535849735,-500.0,0.0001972,2]
[349956113,1737535849745,-500.0,0.0001972,2]
[349956114,1737535849755,-500.0,0.0001972,2]
[349956115,1737535849766,-555.53064745,0.0001972,2]
[349956116,1737535849776,-500.0,0.0001972,2]
[349956117,1737535849786,-500.0,0.0001972,2]
[349956118,1737535849796,-500.0,0.0001972,2]
[349956119,1737535849806,-822.84,0.0001972,2]
[349956120,1737535849816,-333.19629098,0.0001972,2]
[349956121,1737535849826,-500.0,0.0001972,2]
[349956122,1737535849836,-984.18,0.0001972,2]
[349956123,1737535849846,-150.64022147,0.0001972,2]
[349956124,1737535849857,-500.0,0.0001972,2]